{"text_format":"3","workbook":"xlsx","n_sheets":3,"sheets":["Début","Budget et suivi des cadeaux","Données"],"not_rendered":{"charts":1,"defined_names":1},"read":"whole","date_system":"1900"}

{"sheet":"Début","index":0,"n_rows":7,"n_cols":2,"rows_kept":7}
[null,"À propos de ce modèle"]
[null,"Utilisez ce modèle pour consigner vos achats de cadeaux et les suivre par rapport au budget."]
[null,"Entrez dans le tableau les noms de la famille et des amis, les articles cadeaux, les montants budgétés et dépensés, ainsi que les notes, puis sélectionnez l’occasion et le mois de l’événement."]
[null,"Le graphique de vue d’ensemble mensuel est mis à jour automatiquement."]
[null,"Remarque : "]
[null,"Des instructions supplémentaires ont été fournies dans la colonne A de la feuille de calcul BUDGET ET SUIVI DES CADEAUX. Ce texte a été intentionnellement masqué. Pour supprimer le texte, sélectionnez la colonne A et choisissez SUPPRIMER. Pour afficher le texte, sélectionnez la colonne A et changez la couleur de la police."]
[null,"Si vous souhaitez en savoir plus sur les tableaux, appuyez sur MAJ, puis sur F10 dans un tableau. Ensuite, sélectionnez l’option TABLEAU, puis TEXTE DE REMPLACEMENT."]

{"sheet":"Budget et suivi des cadeaux","index":1,"n_rows":10,"n_cols":13,"rows_kept":10,"merged":[[0,1,0,4],[0,5,0,12],[1,1,1,2],[2,1,2,12],[3,1,3,3]]}
["Créez un budget de cadeau personnel et un suivi dans cette feuille de calcul. Le titre de la feuille de calcul se trouve dans la cellule à droite et le conseil dans la cellule F1. Des instructions utiles sur l’utilisation de cette feuille de calcul sont disponibles dans les cellules de cette colonne.","Budget et suivi des cadeaux",{"$nulls":3},"Renseignez autant que possible au début de chaque nouvelle année. Entrez les noms de votre famille et de vos amis, sélectionnez l’occasion de cadeau, sélectionnez le mois de l’événement et tapez le montant que vous souhaitez dépenser. Chaque personne peut apparaître plusieurs fois dans le tableau pour chaque occasion (anniversaire, congé, pluie, etc.)."]
["L’étiquette Vue d’ensemble mensuelle se trouve dans la cellule à droite et le conseil dans la cellule D2.","Vue d’ensemble mensuelle",null,"Utilisez le graphique pour examiner les mois à venir afin de planifier à l’avance. Enregistrez vos achats pour les suivre par rapport à votre budget."]
["L’histogramme pour les montants budgétés avec une superposition de graphique en courbes pour le montant passé se trouve dans la cellule à droite.","L’histogramme des montants budgétés avec une superposition de graphique en courbes pour le montant consacré se trouve dans cette cellule."]
["L’étiquette Budget cadeau et Suivi se trouve dans la cellule à droite.","Budget et suivi des cadeaux"]
["Entrez les détails dans le tableau de suivi du budget commençant dans la cellule à droite.","Nom","Occasion","Mois","Montant\nplanifié","Montant\ndépensé","Cadeau","Lien vers le cadeau","En magasin/\nEn ligne","Acheté ?","Emballé ?","Livré ?","Notes"]
[null,"Nom 1","Anniversaires","Juin",{"v":50,"d":"50 €"},{"v":30,"d":"30 €"},"Chaussures","Vendeur","En ligne","Oui","Non","Non","16/06, Tickets de cinéma"]
[null,"Nom 2","Anniversaires","Avril",{"v":20,"d":"20 €"},{"v":20,"d":"20 €"},"Chat","Vendeur","En magasin","Non","Non","Non","Il a mentionné qu’il aime les chiens"]
[null,"Nom 3","Jours fériés","Juillet",{"v":50,"d":"50 €"},{"v":70,"d":"70 €"},"Casque audio","Vendeur","En ligne","Non","Non","Non","Affaires de dortoir"]
[null,"Nom 4","Anniversaires","Janvier",{"v":20,"d":"20 €"},{"v":30,"d":"30 €"},"Jeu","Vendeur","En magasin","Oui","Oui","Oui"]
[null,"Nom 5","Mariages","Juin",{"v":100,"d":"100 €"},{"v":150,"d":"150 €"},"Vase en cristal","Vendeur","En magasin","Oui","Oui","Non"]

{"sheet":"Données","index":2,"n_rows":13,"n_cols":8,"rows_kept":13,"hidden":true}
["Occasions",null,"Date","Date","Montant du budget\nAnniversaires","Montant du budget\nJours fériés","Montant du budget\nAutres","Montant dépensé"]
["Anniversaires",null,"Janvier","Janv",{"$f":"SUMIFS(BudgetTracker[Montant\nplanifié],BudgetTracker[Mois],\"Janvier\",BudgetTracker[Occasion],\"Anniversaires\")","v":{"v":20,"d":"20 €"}},{"$f":"SUMIFS(BudgetTracker[Montant\nplanifié],BudgetTracker[Mois],\"Janvier\",BudgetTracker[Occasion],\"Jours fériés\")","v":{"v":0,"d":"0 €"}},{"$f":"SUMIFS(BudgetTracker[Montant\nplanifié],BudgetTracker[Mois],\"Janvier\",BudgetTracker[Occasion],\"<>Jours fériés\",BudgetTracker[Occasion],\"<>Anniversaires\")","v":{"v":0,"d":"0 €"}},{"$f":"SUMIFS(BudgetTracker[Montant\ndépensé],BudgetTracker[Mois],\"Janvier\")","v":{"v":30,"d":"30 €"}}]
["Jours fériés",null,"Février","Févr",{"$f":"SUMIFS(BudgetTracker[Montant\nplanifié],BudgetTracker[Mois],\"Février\",BudgetTracker[Occasion],\"Anniversaires\")","v":{"v":0,"d":"0 €"}},{"$f":"SUMIFS(BudgetTracker[Montant\nplanifié],BudgetTracker[Mois],\"Février\",BudgetTracker[Occasion],\"Jours fériés\")","v":{"v":0,"d":"0 €"}},{"$f":"SUMIFS(BudgetTracker[Montant\nplanifié],BudgetTracker[Mois],\"Février\",BudgetTracker[Occasion],\"<>Jours fériés\",BudgetTracker[Occasion],\"<>Anniversaires\")","v":{"v":0,"d":"0 €"}},{"$f":"SUMIFS(BudgetTracker[Montant\ndépensé],BudgetTracker[Mois],\"Février\")","v":{"v":0,"d":"0 €"}}]
["Anniversaires",null,"Mars","Mars",{"$f":"SUMIFS(BudgetTracker[Montant\nplanifié],BudgetTracker[Mois],\"Mars\",BudgetTracker[Occasion],\"Anniversaires\")","v":{"v":0,"d":"0 €"}},{"$f":"SUMIFS(BudgetTracker[Montant\nplanifié],BudgetTracker[Mois],\"Mars\",BudgetTracker[Occasion],\"Jours fériés\")","v":{"v":0,"d":"0 €"}},{"$f":"SUMIFS(BudgetTracker[Montant\nplanifié],BudgetTracker[Mois],\"Mars\",BudgetTracker[Occasion],\"<>Jours fériés\",BudgetTracker[Occasion],\"<>Anniversaires\")","v":{"v":0,"d":"0 €"}},{"$f":"SUMIFS(BudgetTracker[Montant\ndépensé],BudgetTracker[Mois],\"Mars\")","v":{"v":0,"d":"0 €"}}]
["Mariages",null,"Avril","Avr",{"$f":"SUMIFS(BudgetTracker[Montant\nplanifié],BudgetTracker[Mois],\"Avril\",BudgetTracker[Occasion],\"Anniversaires\")","v":{"v":20,"d":"20 €"}},{"$f":"SUMIFS(BudgetTracker[Montant\nplanifié],BudgetTracker[Mois],\"Avril\",BudgetTracker[Occasion],\"Jours fériés\")","v":{"v":0,"d":"0 €"}},{"$f":"SUMIFS(BudgetTracker[Montant\nplanifié],BudgetTracker[Mois],\"Avril\",BudgetTracker[Occasion],\"<>Jours fériés\",BudgetTracker[Occasion],\"<>Anniversaires\")","v":{"v":0,"d":"0 €"}},{"$f":"SUMIFS(BudgetTracker[Montant\ndépensé],BudgetTracker[Mois],\"Avril\")","v":{"v":20,"d":"20 €"}}]
["Fête de la mariée",null,"Mai","Mai",{"$f":"SUMIFS(BudgetTracker[Montant\nplanifié],BudgetTracker[Mois],\"Mai\",BudgetTracker[Occasion],\"Anniversaires\")","v":{"v":0,"d":"0 €"}},{"$f":"SUMIFS(BudgetTracker[Montant\nplanifié],BudgetTracker[Mois],\"Mai\",BudgetTracker[Occasion],\"Jours fériés\")","v":{"v":0,"d":"0 €"}},{"$f":"SUMIFS(BudgetTracker[Montant\nplanifié],BudgetTracker[Mois],\"Mai\",BudgetTracker[Occasion],\"<>Jours fériés\",BudgetTracker[Occasion],\"<>Anniversaires\")","v":{"v":0,"d":"0 €"}},{"$f":"SUMIFS(BudgetTracker[Montant\ndépensé],BudgetTracker[Mois],\"Mai\")","v":{"v":0,"d":"0 €"}}]
["Baby Showers",null,"Juin","Juin",{"$f":"SUMIFS(BudgetTracker[Montant\nplanifié],BudgetTracker[Mois],\"Juin\",BudgetTracker[Occasion],\"Anniversaires\")","v":{"v":50,"d":"50 €"}},{"$f":"SUMIFS(BudgetTracker[Montant\nplanifié],BudgetTracker[Mois],\"Juin\",BudgetTracker[Occasion],\"Jours fériés\")","v":{"v":0,"d":"0 €"}},{"$f":"SUMIFS(BudgetTracker[Montant\nplanifié],BudgetTracker[Mois],\"Juin\",BudgetTracker[Occasion],\"<>Jours fériés\",BudgetTracker[Occasion],\"<>Anniversaires\")","v":{"v":100,"d":"100 €"}},{"$f":"SUMIFS(BudgetTracker[Montant\ndépensé],BudgetTracker[Mois],\"Juin\")","v":{"v":180,"d":"180 €"}}]
["Remise des diplômes",null,"Juillet","Juil",{"$f":"SUMIFS(BudgetTracker[Montant\nplanifié],BudgetTracker[Mois],\"Juillet\",BudgetTracker[Occasion],\"Anniversaires\")","v":{"v":0,"d":"0 €"}},{"$f":"SUMIFS(BudgetTracker[Montant\nplanifié],BudgetTracker[Mois],\"Juillet\",BudgetTracker[Occasion],\"Jours fériés\")","v":{"v":50,"d":"50 €"}},{"$f":"SUMIFS(BudgetTracker[Montant\nplanifié],BudgetTracker[Mois],\"Juillet\",BudgetTracker[Occasion],\"<>Jours fériés\",BudgetTracker[Occasion],\"<>Anniversaires\")","v":{"v":0,"d":"0 €"}},{"$f":"SUMIFS(BudgetTracker[Montant\ndépensé],BudgetTracker[Mois],\"Juillet\")","v":{"v":70,"d":"70 €"}}]
["Autres",null,"Août","Août",{"$f":"SUMIFS(BudgetTracker[Montant\nplanifié],BudgetTracker[Mois],\"Août\",BudgetTracker[Occasion],\"Anniversaires\")","v":{"v":0,"d":"0 €"}},{"$f":"SUMIFS(BudgetTracker[Montant\nplanifié],BudgetTracker[Mois],\"Août\",BudgetTracker[Occasion],\"Jours fériés\")","v":{"v":0,"d":"0 €"}},{"$f":"SUMIFS(BudgetTracker[Montant\nplanifié],BudgetTracker[Mois],\"Août\",BudgetTracker[Occasion],\"<>Jours fériés\",BudgetTracker[Occasion],\"<>Anniversaires\")","v":{"v":0,"d":"0 €"}},{"$f":"SUMIFS(BudgetTracker[Montant\ndépensé],BudgetTracker[Mois],\"Août\")","v":{"v":0,"d":"0 €"}}]
[null,null,"Septembre","Sept",{"$f":"SUMIFS(BudgetTracker[Montant\nplanifié],BudgetTracker[Mois],\"Septembre\",BudgetTracker[Occasion],\"Anniversaires\")","v":{"v":0,"d":"0 €"}},{"$f":"SUMIFS(BudgetTracker[Montant\nplanifié],BudgetTracker[Mois],\"Septembre\",BudgetTracker[Occasion],\"Jours fériés\")","v":{"v":0,"d":"0 €"}},{"$f":"SUMIFS(BudgetTracker[Montant\nplanifié],BudgetTracker[Mois],\"Septembre\",BudgetTracker[Occasion],\"<>Jours fériés\",BudgetTracker[Occasion],\"<>Anniversaires\")","v":{"v":0,"d":"0 €"}},{"$f":"SUMIFS(BudgetTracker[Montant\ndépensé],BudgetTracker[Mois],\"Septembre\")","v":{"v":0,"d":"0 €"}}]
[null,null,"Octobre","Oct",{"$f":"SUMIFS(BudgetTracker[Montant\nplanifié],BudgetTracker[Mois],\"Octobre\",BudgetTracker[Occasion],\"Anniversaires\")","v":{"v":0,"d":"0 €"}},{"$f":"SUMIFS(BudgetTracker[Montant\nplanifié],BudgetTracker[Mois],\"Octobre\",BudgetTracker[Occasion],\"Jours fériés\")","v":{"v":0,"d":"0 €"}},{"$f":"SUMIFS(BudgetTracker[Montant\nplanifié],BudgetTracker[Mois],\"Octobre\",BudgetTracker[Occasion],\"<>Jours fériés\",BudgetTracker[Occasion],\"<>Anniversaires\")","v":{"v":0,"d":"0 €"}},{"$f":"SUMIFS(BudgetTracker[Montant\ndépensé],BudgetTracker[Mois],\"Octobre\")","v":{"v":0,"d":"0 €"}}]
[null,null,"Novembre","Nov",{"$f":"SUMIFS(BudgetTracker[Montant\nplanifié],BudgetTracker[Mois],\"Novembre\",BudgetTracker[Occasion],\"Anniversaires\")","v":{"v":0,"d":"0 €"}},{"$f":"SUMIFS(BudgetTracker[Montant\nplanifié],BudgetTracker[Mois],\"Novembre\",BudgetTracker[Occasion],\"Jours fériés\")","v":{"v":0,"d":"0 €"}},{"$f":"SUMIFS(BudgetTracker[Montant\nplanifié],BudgetTracker[Mois],\"Novembre\",BudgetTracker[Occasion],\"<>Jours fériés\",BudgetTracker[Occasion],\"<>Anniversaires\")","v":{"v":0,"d":"0 €"}},{"$f":"SUMIFS(BudgetTracker[Montant\ndépensé],BudgetTracker[Mois],\"Novembre\")","v":{"v":0,"d":"0 €"}}]
[null,null,"Décembre","Déc",{"$f":"SUMIFS(BudgetTracker[Montant\nplanifié],BudgetTracker[Mois],\"Décembre\",BudgetTracker[Occasion],\"Anniversaires\")","v":{"v":0,"d":"0 €"}},{"$f":"SUMIFS(BudgetTracker[Montant\nplanifié],BudgetTracker[Mois],\"Décembre\",BudgetTracker[Occasion],\"Jours fériés\")","v":{"v":0,"d":"0 €"}},{"$f":"SUMIFS(BudgetTracker[Montant\nplanifié],BudgetTracker[Mois],\"Décembre\",BudgetTracker[Occasion],\"<>Jours fériés\",BudgetTracker[Occasion],\"<>Anniversaires\")","v":{"v":0,"d":"0 €"}},{"$f":"SUMIFS(BudgetTracker[Montant\ndépensé],BudgetTracker[Mois],\"Décembre\")","v":{"v":0,"d":"0 €"}}]